fUSD/lending_fUSD_20260227
["ID","MTS","AMOUNT","RATE_DAILY","PERIOD"]
[406837705,1772217047796,-151.0,0.00018,2]
[406837706,1772217047805,-151.0,0.00018,2]
[406837707,1772217047815,-151.0,0.00018,2]
[406837708,1772217047824,-202.440074,0.00018,2]
[406837709,1772217047833,-200.0,0.00018,2]
[406837710,1772217047843,-151.0,0.00018,2]
[406837711,1772217047852,-4601.2507062,0.00018,2]
[406837712,1772217047861,-151.0,0.00018,2]
[406837713,1772217047870,-151.0,0.00018,2]
[406837714,1772217047880,-151.0,0.00018,2]
[406837715,1772217047889,-151.0,0.00018,2]
[406837716,1772217047901,-332299.7919728,0.00018,2]
[406837717,1772217047911,-151.0,0.00018,2]
[406837718,1772217047920,-151.0,0.00018,2]
[406837719,1772217047929,-151.0,0.00018,2]
[406837720,1772217047938,-151.0,0.00018,2]
[406837721,1772217047948,-151.0,0.00018,2]
[406837722,1772217047957,-151.0,0.00018,2]
[406837723,1772217047966,-151.0,0.00018,2]
[406837724,1772217047975,-151.0,0.00018,2]
[406837725,1772217047984,-465.60182,0.00018,2]
[406837726,1772217047993,-465.60182,0.00018,2]
[406837727,1772217048002,-425.250337,0.00018,2]
[406837728,1772217048011,-465.60182,0.00018,2]
[406837729,1772217048019,-425.250337,0.00018,2]
[406837730,1772217048030,-465.60182,0.00018,2]
[406837731,1772217048039,-425.250337,0.00018,2]
[406837732,1772217048049,-425.250337,0.00018,2]
[406837733,1772217048059,-151.0,0.00018,2]
[406837734,1772217048071,-151.0,0.00018,2]
[406837735,1772217048080,-151.0,0.00018,2]
[406837736,1772217048089,-364.052054,0.00018,2]
[406837737,1772217048098,-364.052054,0.00018,2]
[406837738,1772217048256,-364.052054,0.00018,2]
[406837739,1772217048267,-364.052054,0.00018,2]
[406837740,1772217048277,-500.0,0.00018027,2]
[406837741,1772217048286,-168.0,0.0001808,2]
[406837742,1772217048296,-161.09,0.00018081,2]
[406837743,1772217048306,-500.0,0.00018082,2]
[406837744,1772217048315,-500.0,0.00018137,2]
[406837745,1772217048324,-168.0,0.00018165,2]
[406837746,1772217048334,-168.0,0.0001819,2]
[406837747,1772217048343,-500.0,0.00018192,2]
[406837748,1772217048352,-956.59,0.00018212,2]
[406837749,1772217048362,-168.0,0.00018256,2]
[406837750,1772217048371,-168.0,0.00018309,2]
[406837751,1772217048380,-168.0,0.00018405,2]
[406837752,1772217048389,-219.09,0.00018538,2]
[406837753,1772217048399,-168.0,0.00018568,2]
[406837754,1772217048409,-736.0,0.00018624,2]
[406837755,1772217048419,-150.0,0.00018624,2]
[406837756,1772217048429,-286.0,0.00018624,2]
[406837757,1772217048438,-956.59,0.0001873,2]
[406837758,1772217048449,-168.0,0.00018827,2]
[406837759,1772217048458,-168.0,0.00018827,2]
[406837760,1772217048468,-219.08107403,0.00018994,2]
[406837761,1772217048477,-4858.9780023,0.00019,2]
[406837762,1772217048487,-168.0,0.00019033,2]
[406837763,1772217048496,-168.0,0.0001911,2]
[406837764,1772217048505,-2000.0,0.0001914,2]
[406837765,1772217048514,-2000.0,0.0001916,2]
[406837766,1772217048523,-2000.0,0.0001916,2]
[406837767,1772217048535,-2000.0,0.0001916,2]
[406837768,1772217048544,-2000.0,0.0001916,2]
[406837769,1772217048553,-2000.0,0.0001916,2]
[406837770,1772217048563,-151.0,0.00019178,2]
[406837771,1772217048573,-2434.690059,0.000192,7]
[406837772,1772217048592,-300.0,0.00019229,2]
[406837773,1772217048602,-666.0,0.00019229,2]
[406837774,1772217048611,-174.61919141,0.0001923,2]
[406837775,1772217048621,-500.0,0.0001923,2]
[406837776,1772217048630,-500.0,0.0001923,2]
[406837777,1772217048640,-500.0,0.0001923,2]
[406837778,1772217048650,-250.0,0.0001923,2]
[406837779,1772217048660,-250.0,0.0001923,2]
[406837780,1772217048669,-250.0,0.0001923,2]
[406837781,1772217048679,-250.0,0.0001923,2]
[406837782,1772217048688,-250.0,0.0001923,2]
[406837783,1772217048698,-500.0,0.0001923,2]
[406837784,1772217048707,-250.0,0.0001923,2]
[406837785,1772217048716,-500.0,0.0001923,2]
[406837786,1772217048725,-250.0,0.0001923,2]
[406837787,1772217048735,-500.0,0.0001923,2]
[406837788,1772217048744,-500.0,0.0001923,2]
[406837789,1772217048753,-250.0,0.0001923,2]
[406837790,1772217048763,-500.0,0.0001923,2]
[406837791,1772217048772,-500.0,0.0001923,2]
[406837792,1772217048781,-500.0,0.0001923,2]
[406837793,1772217048791,-250.0,0.0001923,2]
[406837794,1772217048800,-500.0,0.0001923,2]
[406837795,1772217048810,-500.0,0.0001923,2]
[406837796,1772217048819,-250.0,0.0001923,2]
[406837797,1772217048828,-500.0,0.0001923,2]
[406837798,1772217048837,-250.0,0.0001923,2]
[406837799,1772217048847,-500.0,0.0001923,2]
[406837800,1772217048856,-500.0,0.0001923,2]
[406837801,1772217048867,-250.0,0.0001923,2]
[406837802,1772217048876,-500.0,0.0001923,2]
[406837803,1772217048885,-500.0,0.0001923,2]
[406837804,1772217048894,-500.0,0.0001923,2]
[406837805,1772217048903,-250.0,0.0001923,2]
[406837806,1772217048914,-500.0,0.0001923,2]
[406837807,1772217048924,-500.0,0.0001923,2]
[406837808,1772217048934,-500.0,0.0001923,2]
[406837809,1772217048944,-500.0,0.0001923,2]
[406837810,1772217048954,-500.0,0.0001923,2]
[406837811,1772217048963,-500.0,0.0001923,2]
[406837812,1772217048972,-500.0,0.0001923,2]
[406837813,1772217048982,-500.0,0.0001923,2]
[406837814,1772217048992,-151.0,0.0001923,2]
[406837815,1772217049001,-644.79446246,0.0001923,2]
[406837816,1772217049010,-151.0,0.0001923,2]
[406837817,1772217049020,-151.0,0.0001923,2]
[406837818,1772217049029,-151.0,0.0001923,2]
[406837819,1772217049039,-151.0,0.0001923,2]
[406837820,1772217049048,-151.0,0.0001923,2]
[406837821,1772217049059,-151.0,0.0001923,2]
[406837822,1772217049072,-151.0,0.0001923,2]
[406837823,1772217049081,-151.0,0.0001923,2]
[406837824,1772217049091,-151.0,0.0001923,2]
[406837825,1772217049100,-151.0,0.0001923,2]
[406837826,1772217049110,-151.0,0.0001923,2]
[406837827,1772217049120,-151.0,0.0001923,2]
[406837828,1772217049129,-956.59,0.00019247,2]
[406837829,1772217049138,-668.65185757,0.00019285,2]
[406837830,1772217049147,-693.3919763,0.0001934,2]
[406837831,1772217049156,-719.04747942,0.00019395,2]
[406837832,1772217049165,-745.65223616,0.0001945,2]
[406837833,1772217049176,-773.2413689,0.00019505,2]
[406837834,1772217049184,-801.85129955,0.0001956,2]
[406837835,1772217049194,-831.51979763,0.00019615,2]
[406837836,1772217049203,-862.28603014,0.0001967,2]
[406837837,1772217049212,-894.19061326,0.00019725,2]
[406837838,1772217049221,-956.59,0.00019764,2]
[406837839,1772217049230,-181.08010149,0.00019778,2]
[406837840,1772217049240,-927.27566595,0.0001978,2]
[406837841,1772217049250,-961.58486559,0.00019835,2]
[406837842,1772217049259,-997.16350561,0.0001989,2]
[406837843,1772217049269,-300.0,0.00019982,2]
[406837844,1772217049278,-300.0,0.00019982,2]
[406837845,1772217049288,-300.0,0.00019982,2]
[406837846,1772217049297,-322.79728336,0.00019982,2]
[406837847,1772217049307,-545.4112834,0.00019983,2]
[406837848,1772217049316,-84515.7875087,0.00019983,2]
[406837849,1772217049325,-332299.7919728,0.00019983,2]
[406837850,1772217049335,-413.68059178,0.00019999,2]
[406837851,1772217049345,-170.9497447,0.00019999,2]
[406837852,1772217049354,-500.0,0.00019999,2]
[406837853,1772217049364,-500.0,0.00019999,2]
[406837854,1772217049373,-385.40232801,0.00019999,2]
[406837855,1772217049383,-603.68912324,0.00019999,2]
[406837856,1772217049393,-500.0,0.00019999,2]
[406837857,1772217049402,-500.0,0.00019999,2]
[406837858,1772217049413,-500.0,0.00019999,2]
[406837859,1772217049422,-500.0,0.00019999,2]
[406837860,1772217049431,-500.0,0.00019999,2]
[406837861,1772217049441,-500.0,0.00019999,2]
[406837862,1772217049450,-212.06527939,0.00019999,2]
[406837863,1772217049460,-500.0,0.00019999,2]
[406837864,1772217049469,-500.0,0.00019999,2]
[406837865,1772217049478,-500.0,0.00019999,2]
[406837866,1772217049488,-500.0,0.00019999,2]
[406837867,1772217049497,-500.0,0.00019999,2]
[406837868,1772217049506,-500.0,0.00019999,2]
[406837869,1772217049516,-500.0,0.00019999,2]
[406837870,1772217049525,-500.0,0.00019999,2]
[406837871,1772217049534,-500.0,0.00019999,2]
[406837872,1772217049543,-500.0,0.00019999,2]
[406837873,1772217049555,-500.0,0.00019999,2]
[406837874,1772217049583,-500.0,0.00019999,2]
[406837875,1772217049592,-500.0,0.00019999,2]
[406837876,1772217049601,-212.06527939,0.00019999,2]
[406837877,1772217049610,-198.44569557,0.00019999,2]
[406837878,1772217049620,-151.0,0.0002,120]
[406837879,1772217049630,-956.59,0.00020281,2]
[406837880,1772217049640,-187.78006525,0.00020326,2]
[406837881,1772217049649,-1026.6778069,0.00020331,2]
[406837882,1772217049659,-956.59,0.00020798,2]
[406837883,1772217049668,-229.0827834,0.00020851,2]
[406837884,1772217049683,-194.72792766,0.00020874,2]
[406837885,1772217049692,-339.0,0.00020945,2]
[406837886,1772217049702,-151.06985257,0.00021008,7]
[406837887,1772217049712,-500.0,0.00021156,2]
[406837888,1772217049721,-956.59,0.00021315,2]
[406837889,1772217049730,-201.93286099,0.00021422,2]
[406837890,1772217049739,-480.98,0.00021464,2]
[406837891,1772217049749,-480.98,0.00021464,2]
[406837892,1772217049758,-480.98,0.00021464,2]
[406837893,1772217049767,-480.98,0.00021464,2]
[406837894,1772217049776,-480.98,0.00021464,2]
[406837895,1772217049786,-480.98,0.00021464,2]
[406837896,1772217049794,-480.98,0.00021464,2]
[406837897,1772217049804,-161.09,0.00021481,2]
[406837898,1772217049812,-4204.8928411,0.00021593,2]
[406837899,1772217049821,-480.98,0.00021617,2]
[406837900,1772217049830,-480.98,0.0002177,2]
[406837901,1772217049839,-956.59,0.00021832,2]
[406837902,1772217049847,-547.0,0.00021842,2]
[406837903,1772217049856,-246.0,0.00021842,2]
[406837904,1772217049865,-480.98,0.00021924,2]
[406837905,1772217049874,-300.0,0.00021964,2]
[406837906,1772217049883,-300.0,0.00021964,2]
[406837907,1772217049892,-151.0,0.00021965,2]
[406837908,1772217049900,-151.0,0.00021965,2]
[406837909,1772217049910,-151.0,0.00021965,2]
[406837910,1772217049919,-151.0,0.00021965,2]
[406837911,1772217049928,-151.0,0.00021965,2]
[406837912,1772217049937,-465.60182,0.00021965,2]
[406837913,1772217049947,-465.60182,0.00021965,2]
[406837914,1772217049959,-425.250337,0.00021965,2]
[406837915,1772217049968,-465.60182,0.00021965,2]
[406837916,1772217049977,-425.250337,0.00021965,2]
[406837917,1772217049986,-465.60182,0.00021965,2]
[406837918,1772217049995,-425.250337,0.00021965,2]
[406837919,1772217050006,-425.250337,0.00021965,2]
[406837920,1772217050015,-151.0,0.00021965,2]
[406837921,1772217050024,-151.0,0.00021965,2]
[406837922,1772217050033,-151.0,0.00021965,2]
[406837923,1772217050042,-364.052054,0.00021965,2]
[406837924,1772217050052,-364.052054,0.00021965,2]
[406837925,1772217050061,-364.052054,0.00021965,2]
[406837926,1772217050074,-364.052054,0.00021965,2]
[406837927,1772217050084,-545.4112834,0.00021965,2]
[406837928,1772217050093,-84515.7875087,0.00021965,2]
[406837929,1772217050102,-332299.7919728,0.00021965,2]
[406837930,1772217050113,-209.40437684,0.0002197,2]
[406837931,1772217050123,-480.98,0.00022,2]
[406837932,1772217050133,-480.98,0.00022077,2]
[406837933,1772217050143,-510.0,0.00022125,8]
[406837934,1772217050152,-480.98,0.0002223,2]
[406837935,1772217050162,-213.66,0.00022238,6]
[406837936,1772217050171,-480.98,0.00022383,2]
[406837937,1772217050180,-938.238413,0.00022442,2]
[406837938,1772217050189,-217.15233878,0.00022518,2]
[406837939,1772217050198,-481.04943592,0.00022537,2]
[406837940,1772217050207,-480.98,0.00022537,2]
[406837941,1772217050217,-480.98,0.00022537,2]
[406837942,1772217050227,-2315.62,0.0002274,2]
[406837943,1772217050236,-225.18697532,0.00023066,2]
[406837944,1772217050246,-233.51889341,0.00023614,2]
[406837945,1772217050255,-300.0,0.00023947,2]
[406837946,1772217050264,-545.4112834,0.00023948,2]
[406837947,1772217050273,-84515.7875087,0.00023948,2]
[406837948,1772217050283,-332299.7919728,0.00023948,2]
[406837949,1772217050292,-242.15909246,0.00024162,2]
[406837950,1772217050302,-150.36,0.00024421,30]
[406837951,1772217050311,-150.0,0.00024658,2]
[406837952,1772217050320,-251.11897888,0.0002471,2]
[406837953,1772217050329,-82226.0,0.000251,2]
[406837954,1772217050339,-500.0,0.00025123,2]
[406837955,1772217050348,-260.4103811,0.00025258,2]
[406837956,1772217050357,-200.0,0.0002571,11]
[406837957,1772217050367,-3065.4393684,0.00025755,21]
[406837958,1772217050378,-270.0455652,0.00025806,2]
[406837959,1772217050387,-17635.0,0.00025845,2]
[406837960,1772217050397,-150.0,0.0002589,2]
[406837961,1772217050406,-5531.0,0.000259,3]
[406837962,1772217050415,-280.03725112,0.00026354,2]
[406837963,1772217050425,-5531.0,0.000268,5]
[406837964,1772217050435,-290.39862941,0.00026902,2]
[406837965,1772217050444,-203.97975609,0.00026923,2]
[406837966,1772217050453,-150.0,0.00027185,2]
[406837967,1772217050462,-150.36,0.00027356,30]
[406837968,1772217050471,-500.0,0.00027397,2]
[406837969,1772217050481,-500.0,0.00027397,2]
[406837970,1772217050490,-500.0,0.00027397,2]
[406837971,1772217050499,-500.0,0.00027397,2]
[406837972,1772217050509,-500.0,0.00027397,2]
[406837973,1772217050519,-500.0,0.00027397,2]
[406837974,1772217050528,-159.00703767,0.00027397,2]
[406837975,1772217050538,-500.0,0.00027397,2]
[406837976,1772217050548,-438.72,0.00027397,20]
[406837977,1772217050559,-177.386198,0.00027397,2]
[406837978,1772217050568,-177.386198,0.00027397,2]
[406837979,1772217050578,-177.386198,0.00027397,2]
[406837980,1772217050587,-177.386198,0.00027397,2]
[406837981,1772217050596,-177.386198,0.00027397,2]
[406837982,1772217050606,-177.386198,0.00027397,2]
[406837983,1772217050615,-177.386198,0.00027397,2]
[406837984,1772217050624,-177.386198,0.00027397,2]
[406837985,1772217050633,-161.117606,0.00027397,2]
[406837986,1772217050642,-151.0,0.00027397,2]
[406837987,1772217050651,-151.0,0.00027397,2]
[406837988,1772217050663,-151.0,0.00027397,2]
[406837989,1772217050672,-301.1433787,0.0002745,2]
[406837990,1772217050682,-3199.56141489,0.00027985,2]
[406837991,1772217050691,-375.94211009,0.00027985,2]
[406837992,1772217050701,-150.0,0.00028544,2]
[406837993,1772217050710,-2000.0,0.00029,2]
[406837994,1772217050719,-200.0,0.00029182,19]
[406837995,1772217050728,-189.05580761,0.00029329,20]
[406837996,1772217050737,-510.0,0.00029359,14]
[406837997,1772217050746,-150.0,0.000296,14]
[406837998,1772217050756,-150.0,0.00029971,2]
[406837999,1772217050765,-804.33398658,0.0003,7]
[406838000,1772217050774,-150.36,0.00030292,30]
[406838001,1772217050784,-203.73,0.000309,30]
[406838002,1772217050794,-156.39,0.000311,14]
[406838003,1772217050803,-150.0,0.0003147,2]
[406838004,1772217050812,-250629.88391569,0.00032,120]
[406838005,1772217050821,-2000.0,0.000327,2]
[406838006,1772217050830,-214.91,0.000327,14]
[406838007,1772217050839,-500.457971,0.00032877,31]
[406838008,1772217050848,-500.457971,0.00032877,31]
[406838009,1772217050857,-500.457971,0.00032877,31]
[406838010,1772217050867,-500.457971,0.00032877,31]
[406838011,1772217050990,-500.457971,0.00032877,31]
[406838012,1772217051000,-500.457971,0.00032877,31]
[406838013,1772217051010,-500.457971,0.00032877,31]
[406838014,1772217051019,-500.457971,0.00032877,31]
[406838015,1772217051028,-151.0,0.00032877,31]
[406838016,1772217051038,-151.0,0.00032877,31]
[406838017,1772217051047,-150.0,0.00033043,2]
[406838018,1772217051056,-971.51,0.000331,14]
[406838019,1772217051070,-1061.43,0.000331,14]
[406838020,1772217051079,-818.67,0.000331,14]
[406838021,1772217051088,-1698.0,0.000331,2]
[406838022,1772217051097,-150.36,0.00033227,30]
[406838023,1772217051109,-672.0,0.0003327,30]
[406838024,1772217051119,-1076.0,0.0003327,30]
[406838025,1772217051128,-1116.18,0.00033566,36]
[406838026,1772217051137,-2315.62,0.00033973,2]
[406838027,1772217051146,-150.0,0.00034696,2]
[406838028,1772217051155,-1500.0,0.00034795,2]
[406838029,1772217051165,-300.0,0.00035068,60]
[406838030,1772217051175,-300.0,0.00035346,2]
[406838031,1772217051184,-2456.0,0.00035426,2]
[406838032,1772217051193,-1492.181,0.00035426,2]
[406838033,1772217051202,-500.0,0.00035616,2]
[406838034,1772217051211,-151.0,0.00035616,31]
[406838035,1772217051220,-151.0,0.00035616,31]
[406838036,1772217051230,-203.97975609,0.00035847,2]
[406838037,1772217051240,-150.36,0.00036162,30]
[406838038,1772217051249,-500.0,0.00036164,2]
[406838039,1772217051259,-2000.0,0.000364,2]
[406838040,1772217051268,-150.0,0.0003643,2]
[406838041,1772217051278,-1698.0,0.000365,2]
[406838042,1772217051287,-510.0,0.00036593,21]
[406838043,1772217051296,-818.67,0.000367,14]
[406838044,1772217051305,-1061.43,0.000368,14]
[406838045,1772217051315,-971.51,0.000373,14]
[406838046,1772217051324,-150.0,0.00038252,2]
[406838047,1772217051333,-388.468,0.00038426,2]
[406838048,1772217051343,-926.0,0.000385,2]
[406838049,1772217051352,-150.36,0.00039098,30]
[406838050,1772217051361,-411.85,0.00039099,7]
[406838051,1772217051370,-5364.05,0.0004,120]
[406838052,1772217051379,-2000.0,0.000401,2]
[406838053,1772217051388,-150.0,0.00040165,2]
[406838054,1772217051398,-1698.0,0.000402,30]
[406838055,1772217051408,-350.0,0.00040578,2]
[406838056,1772217051417,-24758.61645124,0.000407,6]
[406838057,1772217051593,-2341.212,0.00032093,2]
[406838058,1772217051602,-2454.788,0.000407,6]
[406838059,1772217051686,-789.507,0.000407,6]
[406838060,1772217051698,-8995.41348923,0.000407,6]
[406838061,1772217088111,10000.01,8.053e-05,2]
[406838062,1772217088134,10000.01,8.053e-05,2]
[406838063,1772217088160,2800.02,8.053e-05,2]
[406838064,1772217088185,5000.01,8.053e-05,2]
[406838065,1772217088208,5000.01,8.053e-05,2]
[406838066,1772217088233,5000.01,8.053e-05,2]
[406838067,1772217088257,5000.01,8.053e-05,2]
[406838068,1772217088282,5000.01,8.053e-05,2]
[406838069,1772217091981,-4449.0739837,8.053e-05,2]
[406838070,1772217092108,-5000.01,8.053e-05,2]
[406838071,1772217093814,-6707.62311872,8.053e-05,2]
[406838072,1772217094563,-5000.01,8.053e-05,2]
[406838073,1772217094687,-5000.01,8.053e-05,2]
[406838074,1772217094817,-5000.01,8.053e-05,2]
[406838075,1772217094968,-5000.01,8.053e-05,2]
[406838076,1772217095108,-5000.01,8.053e-05,2]
[406838077,1772217096921,-10000.01,8.053e-05,2]
[406838078,1772217099727,-10000.01,8.053e-05,2]
[406838079,1772217102810,-10000.01,8.053e-05,2]
[406838080,1772217105690,-10000.01,8.053e-05,2]
[406838081,1772217111766,-10000.01,8.053e-05,2]
[406838082,1772217117702,-10000.01,8.053e-05,2]
[406838083,1772217120941,-10000.01,8.053e-05,2]
[406838084,1772217121180,-10000.01,8.053e-05,2]
[406838085,1772217121247,300.0,8.052e-05,2]
[406838086,1772217121325,-10000.01,8.053e-05,2]
[406838087,1772217122271,-10000.01,8.053e-05,2]
[406838088,1772217123766,-10000.01,8.053e-05,2]
[406838089,1772217129786,-10000.01,8.053e-05,2]
[406838090,1772217181238,300.0,8.052e-05,2]
[406838091,1772217182303,300.0,8.052e-05,2]
[406838092,1772217182353,150.0,8.052e-05,2]
[406838093,1772217183331,300.0,8.052e-05,2]
[406838094,1772217301151,300.0,8.052e-05,2]
[406838095,1772217301520,1200.0,8.052e-05,2]
[406838096,1772217362310,184.54572167,8.052e-05,2]
[406838097,1772217379943,500.0,8.052e-05,2]
[406838098,1772217379977,500.0,8.052e-05,2]
[406838099,1772217380009,500.0,8.052e-05,2]
[406838100,1772217380041,465.46427833,8.052e-05,2]
[406838101,1772217380067,34.53572167,8.052e-05,2]
[406838102,1772217380099,500.0,8.052e-05,2]
[406838103,1772217380131,500.0,8.052e-05,2]
[406838104,1772217380167,500.0,8.052e-05,2]
[406838105,1772217380200,500.0,8.052e-05,2]
[406838106,1772217380234,500.0,8.052e-05,2]
[406838107,1772217380273,500.0,8.052e-05,2]
[406838108,1772217380310,500.0,8.052e-05,2]
[406838109,1772217380344,500.0,8.052e-05,2]
[406838110,1772217380380,500.0,8.052e-05,2]
[406838111,1772217380631,465.47427833,8.052e-05,2]
[406838112,1772217380658,34.52572167,8.052e-05,2]
[406838113,1772217380690,500.0,8.052e-05,2]
[406838114,1772217380732,500.0,8.052e-05,2]
[406838115,1772217380956,500.0,8.052e-05,2]
[406838116,1772217380988,500.0,8.052e-05,2]
[406838117,1772217381019,500.0,8.052e-05,2]
[406838118,1772217381053,500.0,8.052e-05,2]
[406838119,1772217381084,500.0,8.052e-05,2]
[406838120,1772217381118,500.0,8.052e-05,2]
[406838121,1772217381158,500.0,8.052e-05,2]
[406838122,1772217381192,465.48427833,8.052e-05,2]
[406838123,1772217381216,34.51572167,8.052e-05,2]
[406838124,1772217381251,500.0,8.052e-05,2]
[406838125,1772217381283,500.0,8.052e-05,2]
[406838126,1772217381318,500.0,8.052e-05,2]
[406838127,1772217381353,500.0,8.052e-05,2]
[406838128,1772217381391,500.0,8.052e-05,2]
[406838129,1772217381431,500.0,8.052e-05,2]
[406838130,1772217381463,500.0,8.052e-05,2]
[406838131,1772217381497,500.0,8.052e-05,2]
[406838132,1772217381531,500.0,8.052e-05,2]
[406838133,1772217381569,465.49427833,8.052e-05,2]
[406838134,1772217381593,34.50572167,8.052e-05,2]
[406838135,1772217381637,500.0,8.052e-05,2]
[406838136,1772217381673,500.0,8.052e-05,2]
[406838137,1772217381712,500.0,8.052e-05,2]
[406838138,1772217381746,500.0,8.052e-05,2]
[406838139,1772217381784,500.0,8.052e-05,2]
[406838140,1772217381818,500.0,8.052e-05,2]
[406838141,1772217381848,500.0,8.052e-05,2]
[406838142,1772217381888,500.0,8.052e-05,2]
[406838143,1772217398868,500.0,8.052e-05,2]
[406838144,1772217398903,465.50427833,8.052e-05,2]
[406838145,1772217398926,34.49572167,8.052e-05,2]
[406838146,1772217398959,500.0,8.052e-05,2]
[406838147,1772217398994,500.0,8.052e-05,2]
[406838148,1772217399035,500.0,8.052e-05,2]
[406838149,1772217399070,500.0,8.052e-05,2]
[406838150,1772217399101,500.0,8.052e-05,2]
[406838151,1772217399133,500.0,8.052e-05,2]
[406838152,1772217399169,500.0,8.052e-05,2]
[406838153,1772217399204,500.0,8.052e-05,2]
[406838154,1772217448369,342.47834263,8.052e-05,2]
[406838155,1772217465363,153.77192155,8.052e-05,2]
[406838156,1772217465416,469.26401415,8.052e-05,2]
[406838157,1772217465441,30.73598585,8.052e-05,2]
[406838158,1772217473413,354.20655223,8.052e-05,2]
[406838159,1772217481548,300.0,8.052e-05,2]
[406838160,1772217541852,300.0,8.052e-05,2]
[406838161,1772217543081,150.0,8.052e-05,2]
[406838162,1772217547574,8865.06746192,7.953e-05,2]
[406838163,1772217547790,10000.01,7.953e-05,2]
[406838164,1772217547817,10000.01,7.953e-05,2]
[406838165,1772217547842,10000.01,7.953e-05,2]
[406838166,1772217547867,10000.01,7.953e-05,2]
[406838167,1772217547892,10000.01,7.953e-05,2]
[406838168,1772217547915,10000.01,7.953e-05,2]
[406838169,1772217547940,10000.01,7.953e-05,2]
[406838170,1772217547963,10000.01,7.953e-05,2]
[406838171,1772217547987,10000.01,7.953e-05,2]
[406838172,1772217548011,5000.01,7.953e-05,2]
[406838173,1772217548034,5000.01,7.953e-05,2]
[406838174,1772217548061,5000.01,7.953e-05,2]
[406838175,1772217548085,5000.01,7.953e-05,2]
[406838176,1772217548110,5000.01,7.953e-05,2]
[406838177,1772217548149,5000.01,7.953e-05,2]
[406838178,1772217548180,5000.01,7.953e-05,2]
[406838179,1772217578611,-10000.01,7.953e-05,2]
[406838180,1772217578719,-10000.01,7.953e-05,2]
[406838181,1772217581497,-10000.01,7.953e-05,2]
[406838182,1772217601457,1200.0,7.952e-05,2]
[406838183,1772217603419,217.0,7.953e-05,2]
[406838184,1772217604019,1131.98391739,7.953e-05,2]
[406838185,1772217661660,300.0,7.952e-05,2]
[406838186,1772217670651,151.0,7.95e-05,2]
[406838187,1772217697513,1242.82,7.794e-05,2]
[406838188,1772217697577,185.504,7.794e-05,2]
[406838189,1772217721334,300.0,7.952e-05,2]
[406838190,1772217722217,150.0,7.952e-05,2]
[406838191,1772217723178,121.70208261,7.952e-05,2]
[406838192,1772217723202,178.29791739,7.952e-05,2]
[406838193,1772217739089,540.16514246,7.952e-05,2]
[406838194,1772217739123,540.16514246,7.952e-05,2]
[406838195,1772217739159,540.16514246,7.952e-05,2]
[406838196,1772217739191,540.16514246,7.952e-05,2]
[406838197,1772217739224,540.16514246,7.952e-05,2]
[406838198,1772217739254,540.16514246,7.952e-05,2]
[406838199,1772217739292,540.16514246,7.952e-05,2]
[406838200,1772217739325,540.16514246,7.952e-05,2]
[406838201,1772217739358,500.39094293,7.952e-05,2]
[406838202,1772217739383,39.77419953,7.952e-05,2]
[406838203,1772217739416,540.16514246,7.952e-05,2]
[406838204,1772217739448,540.16514246,7.952e-05,2]